fUSD/lending_fUSD_20240513
["ID","MTS","AMOUNT","RATE_DAILY","PERIOD"]
[326912277,1715565040665,-500.0,0.00012876,2]
[326912278,1715565040676,-1000.0,0.00012877,2]
[326912279,1715565040686,-1000.0,0.00012877,2]
[326912280,1715565040696,-1000.0,0.00012877,2]
[326912281,1715565040705,-1000.0,0.00012877,2]
[326912282,1715565040716,-1000.0,0.00012877,2]
[326912283,1715565040726,-1000.0,0.00012877,2]
[326912284,1715565040735,-1000.0,0.00012877,2]
[326912285,1715565040945,-1000.0,0.00012877,2]
[326912286,1715565040955,-1000.0,0.00012877,2]
[326912287,1715565040966,-1000.0,0.00012877,2]
[326912288,1715565040975,-1000.0,0.00012877,2]
[326912289,1715565040985,-1000.0,0.00012877,2]
[326912290,1715565040995,-1000.0,0.00012877,2]
[326912291,1715565041004,-1000.0,0.00012877,2]
[326912292,1715565041014,-1000.0,0.00012877,2]
[326912293,1715565041023,-1000.0,0.00012877,2]
[326912294,1715565041034,-1000.0,0.00012877,2]
[326912295,1715565041045,-1000.0,0.00012877,2]
[326912296,1715565041054,-1000.0,0.00012877,2]
[326912297,1715565041063,-1000.0,0.00012877,2]
[326912298,1715565041074,-1000.0,0.00012877,2]
[326912299,1715565041085,-1000.0,0.00012877,2]
[326912300,1715565041095,-1000.0,0.00012877,2]
[326912301,1715565041104,-1000.0,0.00012877,2]
[326912302,1715565041114,-1000.0,0.00012877,2]
[326912303,1715565041125,-1000.0,0.00012877,2]
[326912304,1715565041134,-1000.0,0.00012877,2]
[326912305,1715565041144,-1000.0,0.00012877,2]
[326912306,1715565041154,-1000.0,0.00012877,2]
[326912307,1715565041164,-1000.0,0.00012877,2]
[326912308,1715565041174,-1000.0,0.00012877,2]
[326912309,1715565041183,-1000.0,0.00012877,2]
[326912310,1715565041192,-1000.0,0.00012877,2]
[326912311,1715565041205,-1000.0,0.00012877,2]
[326912312,1715565041215,-1000.0,0.00012877,2]
[326912313,1715565041225,-1000.0,0.00012877,2]
[326912314,1715565041234,-1000.0,0.00012877,2]
[326912315,1715565041243,-1000.0,0.00012877,2]
[326912316,1715565041253,-1000.0,0.00012877,2]
[326912317,1715565041263,-1000.0,0.00012877,2]
[326912318,1715565041272,-1000.0,0.00012877,2]
[326912319,1715565041281,-1000.0,0.00012877,2]
[326912320,1715565041291,-1000.0,0.00012877,2]
[326912321,1715565041301,-1000.0,0.00012877,2]
[326912322,1715565041311,-1000.0,0.00012877,2]
[326912323,1715565041321,-1000.0,0.00012877,2]
[326912324,1715565041330,-1000.0,0.00012877,2]
[326912325,1715565041339,-1000.0,0.00012877,2]
[326912326,1715565041348,-1000.0,0.00012877,2]
[326912327,1715565041358,-1000.0,0.00012877,2]
[326912328,1715565041367,-1000.0,0.00012877,2]
[326912329,1715565041377,-1000.0,0.00012877,2]
[326912330,1715565041386,-1000.0,0.00012877,2]
[326912331,1715565041395,-1000.0,0.00012877,2]
[326912332,1715565041405,-1000.0,0.00012877,2]
[326912333,1715565041414,-1000.0,0.00012877,2]
[326912334,1715565041423,-1000.0,0.00012877,2]
[326912335,1715565041433,-1000.0,0.00012877,2]
[326912336,1715565041442,-1000.0,0.00012877,2]
[326912337,1715565041451,-1000.0,0.00012877,2]
[326912338,1715565041461,-1000.0,0.00012877,2]
[326912339,1715565041472,-1000.0,0.00012877,2]
[326912340,1715565041481,-1000.0,0.00012877,2]
[326912341,1715565041491,-1000.0,0.00012877,2]
[326912342,1715565041500,-1000.0,0.00012877,2]
[326912343,1715565041510,-1000.0,0.00012877,2]
[326912344,1715565041520,-1000.0,0.00012877,2]
[326912345,1715565041529,-1000.0,0.00012877,2]
[326912346,1715565041538,-1000.0,0.00012877,2]
[326912347,1715565041547,-1000.0,0.00012877,2]
[326912348,1715565041557,-1000.0,0.00012877,2]
[326912349,1715565041566,-1000.0,0.00012877,2]
[326912350,1715565041575,-1000.0,0.00012877,2]
[326912351,1715565041584,-1000.0,0.00012877,2]
[326912352,1715565041593,-1000.0,0.00012877,2]
[326912353,1715565041603,-1000.0,0.00012877,2]
[326912354,1715565041612,-1000.0,0.00012877,2]
[326912355,1715565041621,-1000.0,0.00012877,2]
[326912356,1715565041631,-1000.0,0.00012877,2]
[326912357,1715565041640,-1000.0,0.00012877,2]
[326912358,1715565041650,-1000.0,0.00012877,2]
[326912359,1715565041660,-1000.0,0.00012877,2]
[326912360,1715565041669,-1000.0,0.00012877,2]
[326912361,1715565041679,-1000.0,0.00012877,2]
[326912362,1715565041688,-1000.0,0.00012877,2]
[326912363,1715565041700,-1000.0,0.00012877,2]
[326912364,1715565041710,-1000.0,0.00012877,2]
[326912365,1715565041721,-1000.0,0.00012877,2]
[326912366,1715565041731,-1000.0,0.00012877,2]
[326912367,1715565041740,-1000.0,0.00012877,2]
[326912368,1715565041750,-1000.0,0.00012877,2]
[326912369,1715565041760,-1000.0,0.00012877,2]
[326912370,1715565041770,-1000.0,0.00012877,2]
[326912371,1715565041781,-1000.0,0.00012877,2]
[326912372,1715565041790,-1000.0,0.00012877,2]
[326912373,1715565041799,-1000.0,0.00012877,2]
[326912374,1715565041809,-1000.0,0.00012877,2]
[326912375,1715565041818,-1000.0,0.00012877,2]
[326912376,1715565041827,-1000.0,0.00012877,2]
[326912377,1715565041836,-1000.0,0.00012877,2]
[326912378,1715565041846,-7466.54801391,0.00012877,2]
[326912379,1715565041855,-500.0,0.00012879,2]
[326912380,1715565041864,-1000.0,0.0001288,2]
[326912381,1715565041874,-10000.0,0.0001288,2]
[326912382,1715565041883,-172.05401517,0.0001288,2]
[326912383,1715565041893,-312.83213399,0.0001288,2]
[326912384,1715565041902,-182.38641849,0.0001288,2]
[326912385,1715565041911,-847.46791627,0.0001288,2]
[326912386,1715565041921,-7466.54801391,0.0001288,2]
[326912387,1715565041930,-300.0,0.00012883,2]
[326912388,1715565041940,-7466.54801391,0.00012883,2]
[326912389,1715565041949,-301.28252284,0.00012885,2]
[326912390,1715565041958,-7466.54801391,0.00012886,2]
[326912391,1715565041971,-7466.54801391,0.00012889,2]
[326912392,1715565041981,-7466.54801391,0.00012892,2]
[326912393,1715565041990,-6644.36,0.00012893,2]
[326912394,1715565042000,-3270.69,0.00012893,2]
[326912395,1715565042010,-19999.99,0.00012893,2]
[326912396,1715565042019,-29246.46,0.00012893,2]
[326912397,1715565042028,-7466.54801391,0.00012894,2]
[326912398,1715565042037,-7466.54801391,0.00012897,2]
[326912399,1715565042050,-680.0,0.000129,2]
[326912400,1715565042059,-7466.54801391,0.000129,2]
[326912401,1715565042069,-181.39,0.000129,2]
[326912402,1715565042081,-2948.99155485,0.000129,2]
[326912403,1715565042093,-2948.99155485,0.000129,2]
[326912404,1715565042104,-2948.99155485,0.000129,2]
[326912405,1715565042115,-2948.99155485,0.000129,2]
[326912406,1715565042126,-1093.0,0.000129,2]
[326912407,1715565042136,-150.0,0.00012901,2]
[326912408,1715565042146,-150.0,0.00012928,2]
[326912409,1715565042156,-150.0,0.00012928,2]
[326912410,1715565042166,-800.0,0.00012932,2]
[326912411,1715565042175,-300.34360726,0.00012948,2]
[326912412,1715565042185,-157.051311,0.00012968,2]
[326912413,1715565042195,-157.051311,0.00012968,2]
[326912414,1715565042204,-157.051311,0.00012968,2]
[326912415,1715565042216,-157.051311,0.00012968,2]
[326912416,1715565042225,-157.051311,0.00012968,2]
[326912417,1715565042235,-1905.10840165,0.00012969,2]
[326912418,1715565042244,-155.21047186,0.00012969,2]
[326912419,1715565042253,-156.07399,0.00012969,2]
[326912420,1715565042263,-155.33862776,0.00012969,2]
[326912421,1715565042272,-155.22024917,0.00012969,2]
[326912422,1715565042281,-237.5309192,0.00012969,2]
[326912423,1715565042291,-2250.94215345,0.00012969,2]
[326912424,1715565042300,-49735.6,0.00012969,2]
[326912425,1715565042310,-210.87286815,0.0001297,2]
[326912426,1715565042320,-531.93173656,0.0001297,2]
[326912427,1715565042329,-161083.4971304,0.00012971,2]
[326912428,1715565042339,-123733.2382737,0.00012971,2]
[326912429,1715565042348,-72897.02893149,0.00012971,2]
[326912430,1715565042745,-6422.7,0.00012971,2]
[326912431,1715565042824,-500.0,0.00011868,2]
[326912432,1715565042833,-425.72949922,0.00012971,2]
[326912450,1715565042998,-167.78898039,0.00010496,2]
[326912451,1715565043007,-102.34015057,0.0001281,2]
[326912484,1715565043238,-197.65984943,0.0001281,2]
[326912485,1715565043247,-300.0,0.00012834,2]
[326912486,1715565043258,-150.0,0.00012876,2]
[326912487,1715565043267,-300.0,0.00012895,2]
[326912488,1715565043277,-150.0,0.00012951,2]
[326912489,1715565043287,-6637.52098629,0.00012971,2]
[326912491,1715565043296,-5387.01862575,0.00012971,2]
[326912495,1715565043594,-3254.68686046,0.0001288,2]
[326912496,1715565043603,-27474.40329197,0.00012971,2]
[326912514,1715565046196,-316.91747109,0.00012756,2]
[326912515,1715565046206,-273.90252891,0.00012971,2]
[326912516,1715565046402,-531.0,0.00012971,2]
[326912569,1715566002209,841.78,0.00010075,2]
[326912570,1715566004520,192.94,0.00010095,2]
[326912571,1715566066711,61514.46044406,0.00010095,2]
[326912572,1715566069784,7514.01547003,0.00010095,2]
[326912573,1715566083873,7514.01547003,0.00010095,2]
[326912574,1715566101708,1366.32185706,0.00010095,2]
[326912605,1715566202401,150.52301741,0.00010095,2]
[326912615,1715566232512,-656.01389756,0.00010138,2]
[326912616,1715566232522,-1661.47887059,0.00010138,2]
[326912617,1715566232534,-508.47198714,0.00010138,2]
[326912618,1715566232545,-5853.48884164,0.00010138,2]
[326912619,1715566232554,-155.0,0.00010139,2]
[326912620,1715566232563,-200.0,0.0001014,2]
[326912621,1715566232573,-167.78898039,0.00010321,2]
[326912622,1715566232583,-290.98,0.00010452,2]
[326912623,1715566232593,-290.98,0.00010481,2]
[326912624,1715566232602,-290.98,0.00010509,2]
[326912625,1715566232612,-1500.0,0.00010522,2]
[326912626,1715566232621,-290.98,0.00010538,2]
[326912627,1715566232630,-290.98,0.00010566,2]
[326912628,1715566232641,-290.98,0.00010595,2]
[326912629,1715566232650,-430.12,0.00010612,2]
[326912630,1715566232659,-152.04,0.00010612,2]
[326912631,1715566232668,-290.98,0.00010624,2]
[326912632,1715566232678,-290.98,0.00010652,2]
[326912633,1715566232687,-290.98,0.00010681,2]
[326912634,1715566232696,-177.67,0.00010704,2]
[326912635,1715566232706,-290.98,0.0001071,2]
[326912636,1715566232715,-290.98,0.00010738,2]
[326912637,1715566232724,-1102.89,0.00010741,2]
[326912638,1715566232734,-250.0,0.00010757,2]
[326912640,1715566232744,-150.0,0.00010767,2]
[326912642,1715566232753,-290.98,0.00010767,2]
[326912644,1715566232763,-8637.74167797,0.00010768,2]
[326912646,1715566232774,-693.15166513,0.00010768,2]
[326912673,1715566238515,-250.0,0.00010126,2]
[326912674,1715566238526,-789.96347885,0.00010768,2]
[326912688,1715566238772,-13779.14317805,0.00010768,2]
[326912690,1715566238782,-250.0,0.00010776,2]
[326912692,1715566238791,-290.98,0.00010796,2]
[326912693,1715566238800,-155.84,0.00010798,2]
[326912695,1715566238810,-290.98,0.00010824,2]
[326912697,1715566238818,-290.98,0.00010853,2]
[326912698,1715566238828,-8996.2521,0.00010859,2]
[326912699,1715566238838,-290.98,0.00010882,2]
[326912700,1715566238847,-290.98,0.0001091,2]
[326912701,1715566238857,-290.98,0.00010939,2]
[326912703,1715566238869,-150.0,0.00010959,2]
[326912705,1715566238878,-360.25,0.00010959,2]
[326912707,1715566238887,-300.2,0.00010959,2]
[326912709,1715566238896,-250.17,0.00010959,2]
[326912711,1715566238907,-208.48,0.00010959,2]
[326912713,1715566238916,-290.98,0.00010968,2]
[326912715,1715566238925,-290.98,0.00010996,2]
[326912716,1715566238934,-177.01,0.00010999,2]
[326912717,1715566238946,-1000.0,0.00011319,2]
[326912718,1715566238956,-3650.85,0.00011457,2]
[326912719,1715566238965,-500.0,0.00011639,2]
[326912720,1715566238974,-500.0,0.00011648,2]
[326912721,1715566238983,-684.2807,0.00011654,2]
[326912722,1715566238994,-1764.9205,0.00011654,2]
[326912723,1715566239004,-500.0,0.00011656,2]
[326912724,1715566239014,-500.0,0.00011665,2]
[326912725,1715566239023,-500.0,0.00011674,2]
[326912726,1715566239032,-500.0,0.00011683,2]
[326912727,1715566239042,-500.0,0.00011692,2]
[326912728,1715566239051,-500.0,0.000117,2]
[326912729,1715566239060,-500.0,0.00011709,2]
[326912730,1715566239069,-500.0,0.00011718,2]
[326912731,1715566239078,-500.0,0.00011727,2]
[326912732,1715566239088,-500.0,0.00011736,2]
[326912733,1715566239098,-500.0,0.00011744,2]
[326912734,1715566239107,-500.0,0.00011753,2]
[326912735,1715566239116,-60210.36436111,0.00011754,2]
[326912737,1715566239128,-5056.73676619,0.00011754,2]
[326912739,1715566239140,-37098.32993245,0.00011754,2]
[326912742,1715566239151,-2068.59902885,0.00011754,2]
[326912744,1715566239162,-986.9196089,0.00011754,2]
[326912746,1715566239174,-394.58287922,0.00011754,2]
[326912747,1715566240561,-1325.28082328,0.00011754,2]
[326912748,1715566240571,-1479.18273719,0.00011754,2]
[326912749,1715566240583,-291.25694168,0.00011754,2]
[326912750,1715566240813,-1747.78663876,0.00011754,2]
[326912751,1715566241078,-5108.95839677,0.00011754,2]
[326912752,1715566241092,-29278.78215414,0.00011754,2]
[326912766,1715566243773,-7467.47150629,0.00011754,2]
[326912767,1715566243785,-312.20760245,0.00011754,2]
[326912770,1715566263131,-360.75080323,0.00010958,2]
[326912771,1715566263153,-173.73,0.00010959,2]
[326912772,1715566263174,-868.67,0.00010959,2]
[326912774,1715566316077,-204.47113459,0.00011629,2]
[326912775,1715566316100,-500.0,0.0001163,2]
[326912776,1715566316124,-3583.37070318,0.00011652,2]
[326912777,1715566316147,-155.0,0.00011652,2]
[326912778,1715566316171,-453.01938692,0.00011653,2]
[326912779,1715566316194,-453.0193869,0.00011654,2]
[326912780,1715566316217,-1685.9935,0.00011654,2]
[326912781,1715566316240,-210.4629,0.00011654,2]
[326912782,1715566316263,-453.0193869,0.00011654,2]
[326912783,1715566316286,-5293.17572272,0.00011754,2]
[326912784,1715566316309,-605.31707556,0.00011761,2]
[326912799,1715567207505,3916.33,0.00025,120]
[326912800,1715567232292,3000.0,0.000201,60]
[326912806,1715567432665,-326.50846622,0.00010187,2]
[326912809,1715567432675,-155.0,0.00010187,2]
[326912811,1715567432685,-428.20829024,0.00010188,2]
[326912812,1715567432695,-656.01389756,0.00010188,2]
[326912814,1715567432706,-645.06354364,0.00010189,2]
[326912816,1715567432718,-1277.46,0.00010189,2]
[326912817,1715567432730,-4122.83999106,0.00010189,2]
[326912818,1715567432740,-155.0,0.00010288,2]
[326912819,1715567432750,-150.0,0.00010289,2]
[326912820,1715567432759,-319.13827185,0.00010292,2]
[326912821,1715567432771,-1000.0,0.00010796,2]
[326912822,1715567432781,-250.0,0.00010802,2]
[326912823,1715567432790,-23900.0,0.00010982,2]
[326912824,1715567432800,-763.55604464,0.00011,2]
[326912825,1715567432810,-250.0,0.00011023,2]
[326912826,1715567432820,-560.51,0.00011093,2]
[326912827,1715567432830,-150.99,0.00011093,2]
[326912828,1715567432839,-1001.91,0.0001113,2]
[326912829,1715567432849,-186.92,0.00011229,2]
[326912830,1715567432858,-159.89,0.00011252,2]
[326912831,1715567432867,-159.89,0.00011399,2]
[326912832,1715567432877,-500.0,0.0001141,2]
[326912833,1715567432886,-500.0,0.00011419,2]
[326912834,1715567432895,-500.0,0.00011428,2]
[326912835,1715567432905,-500.0,0.00011436,2]
[326912836,1715567432915,-500.0,0.00011445,2]
[326912838,1715567432925,-500.0,0.00011454,2]
[326912840,1715567432934,-500.0,0.00011463,2]
[326912841,1715567432944,-500.0,0.00011472,2]
[326912842,1715567432953,-500.0,0.0001148,2]
[326912843,1715567432962,-500.0,0.00011489,2]
[326912844,1715567432971,-500.0,0.00011498,2]
[326912845,1715567432981,-500.0,0.00011507,2]
[326912846,1715567432991,-177.65,0.00011512,2]
[326912847,1715567433001,-500.0,0.00011516,2]
[326912848,1715567433011,-500.0,0.00011524,2]
[326912849,1715567433024,-167.75,0.00011533,2]
[326912850,1715567433036,-500.0,0.00011533,2]
[326912851,1715567433045,-500.0,0.00011542,2]
[326912852,1715567433055,-159.89,0.00011545,2]
[326912854,1715567433065,-500.0,0.00011551,2]
[326912856,1715567433076,-500.0,0.0001156,2]
[326912858,1715567433085,-500.0,0.00011568,2]
[326912860,1715567433095,-500.0,0.00011577,2]
[326912862,1715567433105,-500.0,0.00011586,2]
[326912864,1715567433114,-500.0,0.00011595,2]
[326912866,1715567433123,-500.0,0.00011604,2]
[326912868,1715567433133,-500.0,0.00011612,2]
[326912870,1715567433142,-500.0,0.00011621,2]
[326912872,1715567433152,-19592.81259257,0.00011639,2]
[326912874,1715567433162,-3000.0,0.0001164,2]
[326912876,1715567433171,-393.7958,0.00011654,2]
[326912878,1715567433181,-265.5899,0.00011654,2]
[326912880,1715567433190,-883.6685,0.00011654,2]
[326912882,1715567433200,-159.89,0.00011692,2]
[326912885,1715567433210,-13065.74779193,0.00011694,2]
[326912887,1715567433220,-177.01,0.00011706,2]
[326912890,1715567433230,-500.0,0.00011762,2]
[326912891,1715567433240,-500.0,0.00011771,2]
[326912893,1715567433249,-500.0,0.0001178,2]
[326912895,1715567433259,-500.0,0.00011788,2]
[326912897,1715567433272,-500.0,0.00011797,2]
[326912899,1715567433283,-500.0,0.00011806,2]
[326912901,1715567433292,-500.0,0.00011815,2]
[326912903,1715567433301,-500.0,0.00011824,2]
[326912905,1715567433315,-500.0,0.00011832,2]
[326912906,1715567433323,-159.89,0.00011839,2]
[326912907,1715567433333,-500.0,0.00011841,2]
[326912908,1715567433343,-500.0,0.0001185,2]
[326912909,1715567433354,-500.0,0.00011859,2]
[326912910,1715567433363,-900.0,0.000119,4]
[326912911,1715567433373,-5000.0,0.00012,2]
[326912912,1715567433383,-1000.0,0.00012,2]
[326912913,1715567433392,-457.39909841,0.00012,2]
[326912914,1715567433402,-249.95116778,0.00012,2]
[326912915,1715567433411,-1800.0,0.00012,4]
[326912916,1715567433421,-2800.0,0.000121,4]
[326912917,1715567433432,-1000.0,0.00012146,2]
[326912918,1715567433442,-276.855951,0.00012157,2]
[326912919,1715567433452,-3700.0,0.000122,4]
[326912920,1715567433461,-1737.5,0.00012241,2]
[326912921,1715567433471,-20000.0,0.000123,2]
[326912922,1715567433481,-4700.0,0.000123,4]
[326912923,1715567433489,-276.855951,0.00012309,2]
[326912924,1715567433499,-1000.0,0.000124,2]
[326912925,1715567433509,-900.0,0.000124,4]
[326912926,1715567433523,-276.855951,0.00012461,2]
[326912927,1715567433532,-884.33215509,0.000125,4]
[326912928,1715567433542,-1004.0,0.000125,2]
[326912929,1715567433552,-900.0,0.000125,4]
[326912930,1715567433561,-155.0,0.00012513,2]
[326912931,1715567433570,-1756.8056,0.00012514,2]
[326912932,1715567433579,-2671.775,0.00012514,2]
[326912933,1715567433588,-1385.0,0.000126,2]
[326912934,1715567433598,-1000.0,0.000126,2]
[326912935,1715567433608,-1000.0,0.000126,2]
[326912936,1715567433618,-1000.0,0.000126,2]
[326912937,1715567433631,-1002.0,0.000126,2]
[326912938,1715567433642,-900.0,0.000126,4]
[326912939,1715567433652,-276.855951,0.00012613,2]
[326912940,1715567433664,-810.0,0.00012614,2]
[326912941,1715567433675,-162.958,0.00012614,2]
[326912942,1715567433686,-612.0,0.00012614,2]
[326912943,1715567433696,-421.527,0.00012614,2]
[326912944,1715567433706,-438.0,0.00012614,2]
[326912945,1715567433716,-150.0,0.00012614,2]
[326912946,1715567433726,-2434.0,0.00012614,2]
[326912947,1715567433735,-150.0,0.00012614,2]
[326912948,1715567433745,-1646.0,0.00012614,2]
[326912949,1715567433755,-444.0,0.00012614,2]
[326912950,1715567433767,-1138.0,0.00012614,2]
[326912951,1715567433777,-3157.0,0.00012614,2]
[326912952,1715567433786,-215.0,0.00012614,2]
[326912953,1715567433796,-5750.0,0.00012614,2]
[326912954,1715567433806,-973.0,0.00012614,2]
[326912955,1715567433817,-1399.0,0.00012614,2]
[326912956,1715567433827,-287.485,0.00012614,2]
[326912957,1715567433838,-2158.0,0.00012614,2]
[326912958,1715567433848,-192.94,0.00012619,2]
[326912959,1715567433858,-150.0,0.00012666,2]
[326912960,1715567433868,-150.099,0.00012666,2]
[326912961,1715567433877,-1000.0,0.000127,2]
[326912962,1715567433888,-1000.0,0.000127,2]
[326912963,1715567433898,-1000.0,0.000127,2]
[326912964,1715567433907,-1000.0,0.000127,2]
[326912965,1715567433918,-900.0,0.000127,4]
[326912966,1715567433928,-150.0,0.00012709,2]
[326912967,1715567433938,-150.0,0.00012709,2]
[326912968,1715567433948,-150.0,0.00012711,2]
[326912969,1715567433958,-150.0,0.00012719,2]
[326912970,1715567433968,-150.0,0.0001272,2]
[326912971,1715567433978,-150.0,0.00012723,2]
[326912972,1715567433988,-150.0,0.00012725,2]
[326912973,1715567433998,-150.0,0.00012725,2]
[326912974,1715567434008,-150.0,0.0001273,2]
[326912975,1715567434020,-150.0,0.00012737,2]
[326912976,1715567434030,-150.0,0.00012738,2]
[326912977,1715567434040,-601.3996,0.0001274,2]
[326912978,1715567434049,-150.0,0.00012743,2]
[326912979,1715567434059,-302.32305016,0.00012749,2]
[326912980,1715567434068,-150.0,0.00012749,2]
[326912981,1715567434077,-150.0,0.00012749,2]
[326912982,1715567434087,-150.0,0.00012751,2]
[326912983,1715567434097,-150.0,0.00012754,2]
[326912984,1715567434107,-150.0,0.00012755,2]
[326912985,1715567434117,-150.0,0.00012757,2]
[326912986,1715567434126,-150.0,0.00012759,2]
[326912987,1715567434137,-150.0,0.00012764,2]
[326912988,1715567434147,-276.855951,0.00012765,2]
[326912989,1715567434158,-1000.0,0.00012771,2]
[326912990,1715567434167,-150.0,0.00012771,2]
[326912991,1715567434176,-150.0,0.00012772,2]
[326912992,1715567434186,-150.0,0.00012774,2]
[326912993,1715567434196,-150.0,0.00012775,2]
[326912994,1715567434206,-150.0,0.00012776,2]
[326912995,1715567434217,-150.0,0.00012777,2]
[326912996,1715567434227,-150.0,0.00012777,2]
[326912997,1715567434237,-150.0,0.00012785,2]
[326912998,1715567434247,-150.0,0.00012786,2]
[326912999,1715567434257,-150.0,0.00012786,2]
[326913000,1715567434273,-150.0,0.00012786,2]
[326913001,1715567434283,-150.0,0.00012787,2]
[326913002,1715567434293,-150.0,0.0001279,2]
[326913003,1715567434303,-150.0,0.00012792,2]
[326913004,1715567434315,-150.0,0.00012792,2]
[326913005,1715567434325,-150.0,0.00012793,2]
[326913006,1715567434335,-150.0,0.00012794,2]
[326913007,1715567434345,-562.0,0.00012796,2]
[326913008,1715567434357,-1400.0,0.000128,4]
[326913009,1715567434367,-173.61,0.000128,2]
[326913010,1715567434377,-150.0,0.00012801,2]
[326913011,1715567434386,-150.0,0.00012802,2]
[326913012,1715567434396,-150.0,0.00012805,2]
[326913013,1715567434406,-150.0,0.00012808,2]
[326913014,1715567434416,-150.0,0.00012813,2]
[326913015,1715567434426,-150.0,0.00012813,2]
[326913016,1715567434437,-150.0,0.00012814,2]
[326913017,1715567434447,-150.0,0.00012818,2]
[326913018,1715567434457,-150.0,0.00012818,2]
[326913019,1715567434467,-150.0,0.00012819,2]
[326913020,1715567434478,-150.0,0.00012825,2]
[326913021,1715567434488,-150.0,0.00012827,2]
[326913022,1715567434497,-150.0,0.0001283,2]
[326913023,1715567434507,-150.0,0.00012832,2]
[326913024,1715567434519,-150.0,0.00012834,2]
[326913025,1715567434529,-150.0,0.00012834,2]
[326913026,1715567434539,-150.0,0.00012843,2]
[326913027,1715567434549,-150.0,0.00012845,2]
[326913028,1715567434559,-150.0,0.00012846,2]
[326913029,1715567434569,-150.0,0.00012847,2]
[326913030,1715567434579,-150.0,0.00012848,2]
[326913031,1715567434589,-503.35070934,0.0001285,2]
[326913032,1715567434599,-957.63883027,0.0001285,2]
[326913033,1715567434608,-12646.59177514,0.00012851,2]
[326913034,1715567434618,-20000.0,0.00012852,2]
[326913035,1715567434628,-150.0,0.00012853,2]
[326913036,1715567434638,-150.0,0.00012856,2]
[326913037,1715567434648,-150.0,0.00012857,2]
[326913038,1715567434657,-150.0,0.00012859,2]
[326913039,1715567434667,-150.65087005,0.00012859,2]
[326913040,1715567434678,-150.0,0.00012859,2]
[326913041,1715567434688,-150.0,0.00012861,2]
[326913042,1715567434698,-150.0,0.00012861,2]
[326913043,1715567434708,-150.0,0.00012864,2]
[326913044,1715567434718,-150.0,0.00012867,2]
[326913045,1715567434727,-150.0,0.00012868,2]
[326913046,1715567434737,-233.82,0.00012869,2]
[326913047,1715567434747,-166.90315673,0.00012871,2]
[326913048,1715567434757,-326.1821505,0.00012871,2]
[326913049,1715567434768,-202.021227,0.00012874,2]
[326913050,1715567434779,-150.0,0.00012875,2]
[326913051,1715567434788,-500.0,0.00012875,2]
[326913052,1715567434798,-166.90315672,0.00012876,2]
[326913053,1715567434808,-326.18215048,0.00012876,2]
[326913054,1715567434818,-181.5468779,0.00012876,2]
[326913055,1715567434828,-525.59050644,0.00012876,2]
[326913056,1715567434838,-506.60593939,0.00012876,2]
[326913057,1715567434848,-500.0,0.00012876,2]
[326913058,1715567434858,-360.34000003,0.00012876,2]
[326913059,1715567434868,-505.86461498,0.00012876,2]
[326913060,1715567434877,-1000.0,0.00012876,2]
[326913061,1715567434887,-500.0,0.00012876,2]
[326913062,1715567434897,-1000.0,0.00012877,2]
[326913063,1715567434907,-1000.0,0.00012877,2]
[326913064,1715567434917,-1000.0,0.00012877,2]
[326913065,1715567434927,-1000.0,0.00012877,2]
[326913066,1715567434936,-1000.0,0.00012877,2]